[Event "Titled Tuesday Blitz September 20 Late 2022"]
[White "Musovic, Armin"]
[Black "Goroshkov, Maksym"]
[WhiteFideId "939935"]
[BlackFideId "14142716"]
[WhiteElo "2255"]
[BlackElo "2257"]
[Result "0-1"]
[Round "09"]
[TimeControl "180+1"]
[Date "2022.09.20"]
[WhiteClock "0:00:02"]
[BlackClock "0:00:23"]

1. a3 {[%clk 0:02:57]}  a6 {[%clk 0:02:59]} 2. Nc3 {[%clk 0:02:58]}  Nf6 {[%clk 0:02:59]} 3. e4 {[%clk 0:02:58]}  e5 {[%clk 0:02:59]} 4. f4 {[%clk 0:02:58]}  d5 {[%clk 0:02:58]} 5. exd5 {[%clk 0:02:55]}  exf4 {[%clk 0:02:53]} 6. Qf3 {[%clk 0:02:45]}  Bd6 {[%clk 0:02:50]} 7. d4 {[%clk 0:02:30]}  Bg4 {[%clk 0:02:48]} 8. Qf2 {[%clk 0:02:30]}  O-O {[%clk 0:02:45]} 9. Bxf4 {[%clk 0:02:28]}  Re8+ {[%clk 0:02:44]} 10. Be2 {[%clk 0:02:29]}  Bxe2 {[%clk 0:02:42]} 11. Ngxe2 {[%clk 0:02:28]}  Bxf4 {[%clk 0:02:42]} 12. Qxf4 {[%clk 0:02:27]}  Nxd5 {[%clk 0:02:43]} 13. Nxd5 {[%clk 0:02:22]}  Qxd5 {[%clk 0:02:44]} 14. Qf3 {[%clk 0:02:21]}  Qxd4 {[%clk 0:02:38]} 15. Rf1 {[%clk 0:02:03]}  Nc6 {[%clk 0:02:19]} 16. Qxf7+ {[%clk 0:01:58]}  Kh8 {[%clk 0:02:18]} 17. Rd1 {[%clk 0:01:23]}  Qxb2 {[%clk 0:02:09]} 18. Rd7 {[%clk 0:01:05]}  Qe5 {[%clk 0:02:05]} 19. Rf2 {[%clk 0:00:56]}  h6 {[%clk 0:01:49]} 20. Kd2 {[%clk 0:00:35]}  Rad8 {[%clk 0:01:44]} 21. Ke1 {[%clk 0:00:27]}  Rxd7 {[%clk 0:01:30]} 22. Qxd7 {[%clk 0:00:28]}  Rd8 {[%clk 0:01:20]} 23. Qxd8+ {[%clk 0:00:25]}  Nxd8 {[%clk 0:01:19]} 24. Rf8+ {[%clk 0:00:26]}  Kh7 {[%clk 0:01:19]} 25. Rxd8 {[%clk 0:00:27]}  Qa1+ {[%clk 0:01:14]} 26. Rd1 {[%clk 0:00:20]}  Qxa3 {[%clk 0:01:14]} 27. c3 {[%clk 0:00:20]}  Qc5 {[%clk 0:01:12]} 28. Rd4 {[%clk 0:00:18]}  a5 {[%clk 0:01:11]} 29. h4 {[%clk 0:00:17]}  b5 {[%clk 0:01:10]} 30. g4 {[%clk 0:00:17]}  b4 {[%clk 0:01:08]} 31. cxb4 {[%clk 0:00:18]}  axb4 {[%clk 0:01:09]} 32. h5 {[%clk 0:00:18]}  b3 {[%clk 0:01:09]} 33. Rd2 {[%clk 0:00:17]}  Qa3 {[%clk 0:00:55]} 34. Nc3 {[%clk 0:00:07]}  b2 {[%clk 0:00:40]} 35. Nb1 {[%clk 0:00:07]}  Qa2 {[%clk 0:00:37]} 36. Rd1 {[%clk 0:00:06]}  Qe6+ {[%clk 0:00:37]} 37. Kd2 {[%clk 0:00:06]}  Qxg4 {[%clk 0:00:35]} 38. Kc2 {[%clk 0:00:07]}  Qxh5 {[%clk 0:00:34]} 39. Rd3 {[%clk 0:00:06]}  Qf5 {[%clk 0:00:32]} 40. Kc3 {[%clk 0:00:04]}  h5 {[%clk 0:00:29]} 41. Rd1 {[%clk 0:00:02]}  h4 {[%clk 0:00:28]} 42. Kxb2 {[%clk 0:00:02]}  h3 {[%clk 0:00:28]} 43. Nc3 {[%clk 0:00:01]}  Qf3 {[%clk 0:00:24]} 44. Rd5 {[%clk 0:00:01]}  Qxd5 {[%clk 0:00:23]} 45. Nxd5 {[%clk 0:00:01]}  h2 {[%clk 0:00:23]} 46. Nf6+ {[%clk 0:00:02]}  gxf6 {[%clk 0:00:23]} 0-1


[Site "https://www.chess.com"]

[Event "Titled Tuesday Blitz September 20 Late 2022"]
[White "Panarin, Mikhail"]
[Black "Maze, Sebastien"]
[WhiteFideId "4153251"]
[BlackFideId "613762"]
[WhiteElo "2495"]
[BlackElo "2430"]
[Result "1-0"]
[Round "09"]
[TimeControl "180+1"]
[Date "2022.09.20"]
[WhiteClock "0:00:10"]
[BlackClock "0:00:04"]

1. e4 {[%clk 0:02:41]}  c5 {[%clk 0:02:59]} 2. Nf3 {[%clk 0:02:41]}  Nc6 {[%clk 0:03:00]} 3. d4 {[%clk 0:02:41]}  cxd4 {[%clk 0:03:00]} 4. Nxd4 {[%clk 0:02:42]}  g6 {[%clk 0:03:00]} 5. c4 {[%clk 0:02:42]}  Bg7 {[%clk 0:03:01]} 6. Be3 {[%clk 0:02:43]}  Nf6 {[%clk 0:03:00]} 7. Nc3 {[%clk 0:02:43]}  O-O {[%clk 0:02:59]} 8. Be2 {[%clk 0:02:43]}  d6 {[%clk 0:02:59]} 9. O-O {[%clk 0:02:44]}  Bd7 {[%clk 0:03:00]} 10. Qd2 {[%clk 0:02:44]}  Nxd4 {[%clk 0:03:00]} 11. Bxd4 {[%clk 0:02:45]}  Bc6 {[%clk 0:03:00]} 12. f3 {[%clk 0:02:45]}  a5 {[%clk 0:03:00]} 13. b3 {[%clk 0:02:45]}  Nd7 {[%clk 0:03:00]} 14. Be3 {[%clk 0:02:44]}  Nc5 {[%clk 0:02:59]} 15. Rac1 {[%clk 0:02:43]}  Be5 {[%clk 0:02:58]} 16. Rfd1 {[%clk 0:02:42]}  e6 {[%clk 0:02:57]} 17. Bg5 {[%clk 0:02:39]}  f6 {[%clk 0:02:51]} 18. Be3 {[%clk 0:02:32]}  f5 {[%clk 0:02:49]} 19. exf5 {[%clk 0:02:29]}  gxf5 {[%clk 0:02:46]} 20. Bg5 {[%clk 0:02:00]}  Qe8 {[%clk 0:02:41]} 21. Bf4 {[%clk 0:01:50]}  Rd8 {[%clk 0:02:26]} 22. Bxe5 {[%clk 0:01:37]}  dxe5 {[%clk 0:02:25]} 23. Qe3 {[%clk 0:01:29]}  Rxd1+ {[%clk 0:02:19]} 24. Rxd1 {[%clk 0:01:29]}  Nd7 {[%clk 0:02:17]} 25. c5 {[%clk 0:01:24]}  Qe7 {[%clk 0:02:09]} 26. Rd6 {[%clk 0:01:24]}  Kh8 {[%clk 0:01:44]} 27. Bc4 {[%clk 0:01:22]}  Qg7 {[%clk 0:01:31]} 28. Rxe6 {[%clk 0:01:07]}  e4 {[%clk 0:01:23]} 29. f4 {[%clk 0:00:49]}  Nf6 {[%clk 0:01:12]} 30. h3 {[%clk 0:00:34]}  Nh5 {[%clk 0:01:10]} 31. Ne2 {[%clk 0:00:32]}  Rg8 {[%clk 0:01:07]} 32. g4 {[%clk 0:00:17]}  fxg4 {[%clk 0:01:05]} 33. h4 {[%clk 0:00:18]}  g3 {[%clk 0:00:49]} 34. Rxc6 {[%clk 0:00:16]}  bxc6 {[%clk 0:00:46]} 35. Bxg8 {[%clk 0:00:17]}  Kxg8 {[%clk 0:00:45]} 36. Qxe4 {[%clk 0:00:17]}  Qg4 {[%clk 0:00:42]} 37. Qe8+ {[%clk 0:00:13]}  Kg7 {[%clk 0:00:42]} 38. Qe7+ {[%clk 0:00:13]}  Kg8 {[%clk 0:00:42]} 39. Qg5+ {[%clk 0:00:12]}  Qxg5 {[%clk 0:00:40]} 40. fxg5 {[%clk 0:00:13]}  Kf7 {[%clk 0:00:36]} 41. Nd4 {[%clk 0:00:11]}  Nf4 {[%clk 0:00:32]} 42. Nxc6 {[%clk 0:00:10]}  Ke6 {[%clk 0:00:32]} 43. Nd4+ {[%clk 0:00:09]}  Kd5 {[%clk 0:00:31]} 44. Nf5 {[%clk 0:00:09]}  Kxc5 {[%clk 0:00:29]} 45. Nxg3 {[%clk 0:00:10]}  Kb4 {[%clk 0:00:29]} 46. Ne4 {[%clk 0:00:08]}  Ka3 {[%clk 0:00:27]} 47. Kf2 {[%clk 0:00:08]}  Kxa2 {[%clk 0:00:27]} 48. Nc5 {[%clk 0:00:08]}  Ka3 {[%clk 0:00:21]} 49. Kf3 {[%clk 0:00:08]}  Ng6 {[%clk 0:00:12]} 50. h5 {[%clk 0:00:08]}  Nf8 {[%clk 0:00:12]} 51. Kg4 {[%clk 0:00:08]}  Kb4 {[%clk 0:00:12]} 52. Nb7 {[%clk 0:00:08]}  Kb5 {[%clk 0:00:08]} 53. Nd6+ {[%clk 0:00:06]}  Kc5 {[%clk 0:00:06]} 54. Nc4 {[%clk 0:00:07]}  a4 {[%clk 0:00:05]} 55. bxa4 {[%clk 0:00:07]}  Kxc4 {[%clk 0:00:06]} 56. Kf5 {[%clk 0:00:08]}  Kb4 {[%clk 0:00:05]} 57. Kf6 {[%clk 0:00:09]}  Kxa4 {[%clk 0:00:05]} 58. Kf7 {[%clk 0:00:09]}  Nd7 {[%clk 0:00:06]} 59. Kg7 {[%clk 0:00:09]}  Kb5 {[%clk 0:00:03]} 60. Kxh7 {[%clk 0:00:09]}  Kc6 {[%clk 0:00:03]} 61. Kg7 {[%clk 0:00:10]}  Kd6 {[%clk 0:00:03]} 62. h6 {[%clk 0:00:10]}  Ke6 {[%clk 0:00:03]} 63. h7 {[%clk 0:00:10]}  Kf5 {[%clk 0:00:04]} 64. h8=Q {[%clk 0:00:10]} 1-0


[Site "https://www.chess.com"]

[Event "Titled Tuesday Blitz September 20 Late 2022"]
[White "Pham, Khoi"]
[Black "Pakleza, Zbigniew"]
[WhiteFideId "1054988"]
[BlackFideId "1119290"]
[WhiteElo "2418"]
[BlackElo "2411"]
[Result "0-1"]
[Round "09"]
[TimeControl "180+1"]
[Date "2022.09.20"]
[WhiteClock "0:00:19"]
[BlackClock "0:00:07"]

1. e4 {[%clk 0:03:00]}  d6 {[%clk 0:03:00]} 2. d4 {[%clk 0:03:00]}  Nf6 {[%clk 0:03:00]} 3. Nc3 {[%clk 0:03:00]}  c6 {[%clk 0:03:01]} 4. f4 {[%clk 0:02:57]}  Qb6 {[%clk 0:03:01]} 5. Nf3 {[%clk 0:02:56]}  Bg4 {[%clk 0:03:01]} 6. Be2 {[%clk 0:02:52]}  Bxf3 {[%clk 0:02:59]} 7. Bxf3 {[%clk 0:02:53]}  e5 {[%clk 0:02:58]} 8. dxe5 {[%clk 0:02:43]}  dxe5 {[%clk 0:02:59]} 9. Qe2 {[%clk 0:02:43]}  Nbd7 {[%clk 0:02:58]} 10. Bd2 {[%clk 0:02:34]}  Qxb2 {[%clk 0:02:42]} 11. Rb1 {[%clk 0:02:33]}  Qxc2 {[%clk 0:02:40]} 12. Rxb7 {[%clk 0:02:30]}  Nc5 {[%clk 0:02:12]} 13. Rb1 {[%clk 0:02:12]}  Nd3+ {[%clk 0:02:04]} 14. Kf1 {[%clk 0:02:10]}  Bd6 {[%clk 0:01:43]} 15. f5 {[%clk 0:01:42]}  O-O {[%clk 0:01:38]} 16. g4 {[%clk 0:01:42]}  Bb4 {[%clk 0:01:05]} 17. Rb3 {[%clk 0:01:22]}  Rfd8 {[%clk 0:00:56]} 18. g5 {[%clk 0:01:18]}  Nd7 {[%clk 0:00:52]} 19. Nd1 {[%clk 0:01:00]}  Bxd2 {[%clk 0:00:45]} 20. Rxd3 {[%clk 0:00:59]}  Nc5 {[%clk 0:00:45]} 21. Rxd8+ {[%clk 0:00:54]}  Rxd8 {[%clk 0:00:46]} 22. g6 {[%clk 0:00:50]}  Nd3 {[%clk 0:00:33]} 23. gxf7+ {[%clk 0:00:47]}  Kf8 {[%clk 0:00:33]} 24. Rg1 {[%clk 0:00:42]}  Nf4 {[%clk 0:00:26]} 25. Qa6 {[%clk 0:00:28]}  Bb4 {[%clk 0:00:17]} 26. Ne3 {[%clk 0:00:20]}  Qc1+ {[%clk 0:00:09]} 27. Kf2 {[%clk 0:00:19]}  Qxe3+ {[%clk 0:00:07]} 28. Kxe3 {[%clk 0:00:19]}  Bc5# {[%clk 0:00:07]} 0-1


[Site "https://www.chess.com"]

[Event "Titled Tuesday Blitz September 20 Late 2022"]
[White "Rasulov, Vugar"]
[Black "Fernandez De La Vara, Arnaldo"]
[WhiteFideId "13402390"]
[BlackFideId "3518388"]
[WhiteElo "2509"]
[BlackElo "2387"]
[Result "1-0"]
[Round "09"]
[TimeControl "180+1"]
[Date "2022.09.20"]
[WhiteClock "0:00:06"]
[BlackClock "0:00:04"]

1. d4 {[%clk 0:03:00]}  c5 {[%clk 0:03:00]} 2. d5 {[%clk 0:03:00]}  Nf6 {[%clk 0:03:01]} 3. Nc3 {[%clk 0:03:00]}  d6 {[%clk 0:03:02]} 4. e4 {[%clk 0:03:00]}  a6 {[%clk 0:03:03]} 5. a4 {[%clk 0:03:00]}  g6 {[%clk 0:03:04]} 6. h3 {[%clk 0:03:00]}  Bg7 {[%clk 0:03:04]} 7. Nf3 {[%clk 0:03:00]}  O-O {[%clk 0:03:05]} 8. Bd3 {[%clk 0:02:52]}  Nbd7 {[%clk 0:03:05]} 9. O-O {[%clk 0:02:52]}  Ne8 {[%clk 0:03:06]} 10. Bf4 {[%clk 0:02:49]}  Nc7 {[%clk 0:03:06]} 11. Re1 {[%clk 0:02:50]}  Rb8 {[%clk 0:03:06]} 12. e5 {[%clk 0:02:45]}  dxe5 {[%clk 0:03:07]} 13. Nxe5 {[%clk 0:02:46]}  Nxe5 {[%clk 0:03:02]} 14. Bxe5 {[%clk 0:02:47]}  b5 {[%clk 0:02:35]} 15. Bxg7 {[%clk 0:02:27]}  Kxg7 {[%clk 0:02:36]} 16. axb5 {[%clk 0:02:27]}  axb5 {[%clk 0:02:34]} 17. Bf1 {[%clk 0:02:25]}  Qd6 {[%clk 0:02:05]} 18. Ne4 {[%clk 0:02:15]}  Qb6 {[%clk 0:02:05]} 19. d6 {[%clk 0:02:08]}  exd6 {[%clk 0:01:55]} 20. Qxd6 {[%clk 0:02:09]}  Ne6 {[%clk 0:01:26]} 21. Qe5+ {[%clk 0:01:56]}  f6 {[%clk 0:01:25]} 22. Qd6 {[%clk 0:01:57]}  Rf7 {[%clk 0:00:58]} 23. c3 {[%clk 0:01:45]}  Rd7 {[%clk 0:00:40]} 24. Qg3 {[%clk 0:01:45]}  Qc7 {[%clk 0:00:34]} 25. Qxc7 {[%clk 0:01:38]}  Rxc7 {[%clk 0:00:35]} 26. Nd6 {[%clk 0:01:39]}  Bd7 {[%clk 0:00:36]} 27. b4 {[%clk 0:01:25]}  cxb4 {[%clk 0:00:34]} 28. cxb4 {[%clk 0:01:26]}  f5 {[%clk 0:00:25]} 29. Ra6 {[%clk 0:01:21]}  Kf8 {[%clk 0:00:21]} 30. h4 {[%clk 0:01:07]}  Nd4 {[%clk 0:00:19]} 31. f3 {[%clk 0:00:54]}  Rc6 {[%clk 0:00:20]} 32. Rxc6 {[%clk 0:00:50]}  Bxc6 {[%clk 0:00:21]} 33. Rd1 {[%clk 0:00:50]}  Nc2 {[%clk 0:00:16]} 34. Rc1 {[%clk 0:00:30]}  Nxb4 {[%clk 0:00:16]} 35. Rc5 {[%clk 0:00:28]}  Ke7 {[%clk 0:00:08]} 36. Nxb5 {[%clk 0:00:28]}  Bxb5 {[%clk 0:00:06]} 37. Rxb5 {[%clk 0:00:28]}  Rxb5 {[%clk 0:00:06]} 38. Bxb5 {[%clk 0:00:29]}  Nc2 {[%clk 0:00:04]} 39. Kf2 {[%clk 0:00:29]}  Nd4 {[%clk 0:00:05]} 40. Bc4 {[%clk 0:00:29]}  Kf6 {[%clk 0:00:05]} 41. Ke3 {[%clk 0:00:29]}  Nc2+ {[%clk 0:00:05]} 42. Kf4 {[%clk 0:00:27]}  Ne1 {[%clk 0:00:04]} 43. Kg3 {[%clk 0:00:26]}  Ke5 {[%clk 0:00:05]} 44. f4+ {[%clk 0:00:18]}  Kf6 {[%clk 0:00:03]} 45. Kf2 {[%clk 0:00:18]}  Nc2 {[%clk 0:00:03]} 46. g3 {[%clk 0:00:19]}  Nd4 {[%clk 0:00:02]} 47. Ke3 {[%clk 0:00:20]}  Nc2+ {[%clk 0:00:02]} 48. Kd2 {[%clk 0:00:19]}  Nd4 {[%clk 0:00:02]} 49. Kd3 {[%clk 0:00:17]}  Nc6 {[%clk 0:00:03]} 50. Bb5 {[%clk 0:00:16]}  Nd8 {[%clk 0:00:03]} 51. Kd4 {[%clk 0:00:15]}  Nf7 {[%clk 0:00:03]} 52. Kd5 {[%clk 0:00:15]}  Nh6 {[%clk 0:00:04]} 53. Be2 {[%clk 0:00:15]}  Nf7 {[%clk 0:00:03]} 54. Bf3 {[%clk 0:00:15]}  h5 {[%clk 0:00:03]} 55. Be2 {[%clk 0:00:15]}  Nh6 {[%clk 0:00:04]} 56. Kd6 {[%clk 0:00:15]}  Nf7+ {[%clk 0:00:04]} 57. Kd7 {[%clk 0:00:15]}  Nh6 {[%clk 0:00:03]} 58. Bf3 {[%clk 0:00:13]}  Nf7 {[%clk 0:00:03]} 59. Bd1 {[%clk 0:00:12]}  Nh6 {[%clk 0:00:03]} 60. Ke8 {[%clk 0:00:13]}  Nf7 {[%clk 0:00:03]} 61. Kd7 {[%clk 0:00:12]}  Nh6 {[%clk 0:00:03]} 62. Kd6 {[%clk 0:00:10]}  Nf7+ {[%clk 0:00:02]} 63. Kd5 {[%clk 0:00:10]}  Ke7 {[%clk 0:00:02]} 64. Bb3 {[%clk 0:00:10]}  Nd6 {[%clk 0:00:03]} 65. Bc2 {[%clk 0:00:10]}  Nf7 {[%clk 0:00:03]} 66. Bd3 {[%clk 0:00:09]}  Kf6 {[%clk 0:00:03]} 67. Kc6 {[%clk 0:00:09]}  Nd8+ {[%clk 0:00:03]} 68. Kd7 {[%clk 0:00:08]}  Ne6 {[%clk 0:00:04]} 69. Kd6 {[%clk 0:00:09]}  Nd8 {[%clk 0:00:02]} 70. Bc4 {[%clk 0:00:08]}  Nb7+ {[%clk 0:00:02]} 71. Kd5 {[%clk 0:00:09]}  Nd8 {[%clk 0:00:02]} 72. Bb3 {[%clk 0:00:07]}  Ne6 {[%clk 0:00:02]} 73. Ba2 {[%clk 0:00:06]}  Nc7+ {[%clk 0:00:02]} 74. Kc6 {[%clk 0:00:06]}  Ne6 {[%clk 0:00:01]} 75. Kd5 {[%clk 0:00:04]}  Ng7 {[%clk 0:00:01]} 76. Kd6 {[%clk 0:00:04]}  Ne8+ {[%clk 0:00:02]} 77. Kd7 {[%clk 0:00:04]}  Ng7 {[%clk 0:00:02]} 78. Bd5 {[%clk 0:00:05]}  Ne6 {[%clk 0:00:01]} 79. Bxe6 {[%clk 0:00:05]}  g5 {[%clk 0:00:02]} 80. hxg5+ {[%clk 0:00:04]}  Kg6 {[%clk 0:00:03]} 81. Ke7 {[%clk 0:00:04]}  h4 {[%clk 0:00:04]} 82. Bf7+ {[%clk 0:00:05]}  Kg7 {[%clk 0:00:03]} 83. gxh4 {[%clk 0:00:06]}  Kh7 {[%clk 0:00:04]} 84. Kf6 {[%clk 0:00:06]} 1-0


[Site "https://www.chess.com"]

[Event "Titled Tuesday Blitz September 20 Late 2022"]
[White "Safarli, Eltaj"]
[Black "Bluebaum, Matthias"]
[WhiteFideId "13402129"]
[BlackFideId "24651516"]
[WhiteElo "2634"]
[BlackElo "2633"]
[Result "1-0"]
[Round "09"]
[TimeControl "180+1"]
[Date "2022.09.20"]
[WhiteClock "0:01:44"]
[BlackClock "0:00:03"]

1. e4 {[%clk 0:03:00]}  e6 {[%clk 0:02:57]} 2. d4 {[%clk 0:03:00]}  d5 {[%clk 0:02:58]} 3. Nd2 {[%clk 0:03:01]}  c5 {[%clk 0:02:56]} 4. Ngf3 {[%clk 0:03:01]}  cxd4 {[%clk 0:02:55]} 5. exd5 {[%clk 0:03:00]}  Qxd5 {[%clk 0:02:56]} 6. g3 {[%clk 0:03:00]}  Bd7 {[%clk 0:02:41]} 7. Bc4 {[%clk 0:02:58]}  Qd6 {[%clk 0:02:35]} 8. O-O {[%clk 0:02:57]}  Bc6 {[%clk 0:02:34]} 9. Nb3 {[%clk 0:02:52]}  Bxf3 {[%clk 0:02:27]} 10. Qxf3 {[%clk 0:02:52]}  Nc6 {[%clk 0:02:28]} 11. Bf4 {[%clk 0:02:48]}  Qd7 {[%clk 0:02:29]} 12. Rad1 {[%clk 0:02:46]}  a6 {[%clk 0:02:22]} 13. c3 {[%clk 0:02:38]}  Nge7 {[%clk 0:01:57]} 14. Nxd4 {[%clk 0:02:35]}  Nxd4 {[%clk 0:01:58]} 15. Rxd4 {[%clk 0:02:35]}  Qc6 {[%clk 0:01:58]} 16. Qe2 {[%clk 0:02:31]}  Nf5 {[%clk 0:01:57]} 17. Re4 {[%clk 0:02:28]}  Be7 {[%clk 0:01:38]} 18. Bxe6 {[%clk 0:02:16]}  fxe6 {[%clk 0:01:25]} 19. Rxe6 {[%clk 0:02:17]}  Qb5 {[%clk 0:01:14]} 20. c4 {[%clk 0:02:14]}  Qd7 {[%clk 0:00:59]} 21. Rd1 {[%clk 0:02:08]}  Qc8 {[%clk 0:00:34]} 22. Bg5 {[%clk 0:02:00]}  O-O {[%clk 0:00:19]} 23. Bxe7 {[%clk 0:02:01]}  Re8 {[%clk 0:00:19]} 24. Re5 {[%clk 0:02:01]}  Rxe7 {[%clk 0:00:06]} 25. Rxe7 {[%clk 0:02:02]}  Nxe7 {[%clk 0:00:07]} 26. Qxe7 {[%clk 0:02:03]}  Qxc4 {[%clk 0:00:08]} 27. Qxb7 {[%clk 0:02:03]}  Rf8 {[%clk 0:00:07]} 28. Qd5+ {[%clk 0:02:03]}  Qxd5 {[%clk 0:00:08]} 29. Rxd5 {[%clk 0:02:04]}  Rc8 {[%clk 0:00:08]} 30. b4 {[%clk 0:01:59]}  Rc6 {[%clk 0:00:05]} 31. a4 {[%clk 0:01:57]}  Kf7 {[%clk 0:00:06]} 32. Kg2 {[%clk 0:01:56]}  Rb6 {[%clk 0:00:06]} 33. Rd4 {[%clk 0:01:55]}  Ke6 {[%clk 0:00:06]} 34. f4 {[%clk 0:01:55]}  Rc6 {[%clk 0:00:05]} 35. Kf3 {[%clk 0:01:54]}  Rc3+ {[%clk 0:00:06]} 36. Ke4 {[%clk 0:01:55]}  Rb3 {[%clk 0:00:07]} 37. Rc4 {[%clk 0:01:53]}  Kd6 {[%clk 0:00:07]} 38. Rd4+ {[%clk 0:01:46]}  Ke6 {[%clk 0:00:07]} 39. f5+ {[%clk 0:01:46]}  Ke7 {[%clk 0:00:07]} 40. Kf4 {[%clk 0:01:45]}  Rb2 {[%clk 0:00:07]} 41. h4 {[%clk 0:01:45]}  Rf2+ {[%clk 0:00:04]} 42. Ke5 {[%clk 0:01:45]}  Rb2 {[%clk 0:00:03]} 43. g4 {[%clk 0:01:44]} 1-0


[Site "https://www.chess.com"]

[Event "Titled Tuesday Blitz September 20 Late 2022"]
[White "Tanenbaum, Zachary"]
[Black "Kamsky, Gata"]
[WhiteFideId "2060850"]
[BlackFideId "2000024"]
[WhiteElo "2175"]
[BlackElo "2666"]
[Result "0-1"]
[Round "09"]
[TimeControl "180+1"]
[Date "2022.09.20"]
[WhiteClock "0:00:12"]
[BlackClock "0:00:31"]

1. e4 {[%clk 0:03:00]}  c5 {[%clk 0:02:56]} 2. Nf3 {[%clk 0:03:01]}  e6 {[%clk 0:02:52]} 3. d4 {[%clk 0:03:02]}  cxd4 {[%clk 0:02:49]} 4. Nxd4 {[%clk 0:03:03]}  a6 {[%clk 0:02:49]} 5. Bd3 {[%clk 0:03:03]}  Bc5 {[%clk 0:02:49]} 6. Nb3 {[%clk 0:03:04]}  Ba7 {[%clk 0:02:48]} 7. O-O {[%clk 0:03:03]}  Ne7 {[%clk 0:02:47]} 8. Nc3 {[%clk 0:03:03]}  O-O {[%clk 0:02:44]} 9. Qe2 {[%clk 0:03:02]}  Nbc6 {[%clk 0:02:42]} 10. Be3 {[%clk 0:03:02]}  e5 {[%clk 0:02:39]} 11. Bxa7 {[%clk 0:03:01]}  Rxa7 {[%clk 0:02:38]} 12. Nd5 {[%clk 0:02:56]}  d6 {[%clk 0:02:36]} 13. c4 {[%clk 0:02:55]}  Nxd5 {[%clk 0:02:26]} 14. cxd5 {[%clk 0:02:54]}  Ne7 {[%clk 0:02:25]} 15. Rac1 {[%clk 0:02:32]}  Ra8 {[%clk 0:02:08]} 16. Rc2 {[%clk 0:02:29]}  f5 {[%clk 0:02:04]} 17. f3 {[%clk 0:02:29]}  Bd7 {[%clk 0:01:58]} 18. Qe3 {[%clk 0:02:25]}  fxe4 {[%clk 0:01:55]} 19. fxe4 {[%clk 0:02:24]}  Rxf1+ {[%clk 0:01:53]} 20. Bxf1 {[%clk 0:02:25]}  Rc8 {[%clk 0:01:47]} 21. Qc1 {[%clk 0:02:25]}  Qb6+ {[%clk 0:01:46]} 22. Kh1 {[%clk 0:02:24]}  Rxc2 {[%clk 0:01:45]} 23. Qxc2 {[%clk 0:02:24]}  Ba4 {[%clk 0:01:45]} 24. Bc4 {[%clk 0:01:59]}  Qc7 {[%clk 0:01:35]} 25. Bd3 {[%clk 0:01:47]}  Qb6 {[%clk 0:01:31]} 26. Bc4 {[%clk 0:01:46]}  h6 {[%clk 0:01:25]} 27. h3 {[%clk 0:01:44]}  Ng6 {[%clk 0:01:18]} 28. Qd2 {[%clk 0:01:34]}  Bxb3 {[%clk 0:01:17]} 29. Bxb3 {[%clk 0:01:34]}  Nf4 {[%clk 0:01:14]} 30. h4 {[%clk 0:01:24]}  Qc5 {[%clk 0:01:09]} 31. g3 {[%clk 0:01:24]}  Nh5 {[%clk 0:01:08]} 32. Kg2 {[%clk 0:01:21]}  Nf6 {[%clk 0:01:08]} 33. Qc2 {[%clk 0:01:15]}  Kf8 {[%clk 0:00:41]} 34. a4 {[%clk 0:01:01]}  Qxc2+ {[%clk 0:00:37]} 35. Bxc2 {[%clk 0:01:01]}  a5 {[%clk 0:00:38]} 36. Kf3 {[%clk 0:01:00]}  Ke7 {[%clk 0:00:38]} 37. Ke3 {[%clk 0:00:56]}  Kd8 {[%clk 0:00:34]} 38. Kd3 {[%clk 0:00:47]}  Kc7 {[%clk 0:00:34]} 39. Kc4 {[%clk 0:00:42]}  Kb6 {[%clk 0:00:34]} 40. Bd3 {[%clk 0:00:42]}  Nh5 {[%clk 0:00:33]} 41. g4 {[%clk 0:00:42]}  Nf6 {[%clk 0:00:34]} 42. g5 {[%clk 0:00:20]}  hxg5 {[%clk 0:00:33]} 43. hxg5 {[%clk 0:00:20]}  Nh7 {[%clk 0:00:34]} 44. g6 {[%clk 0:00:21]}  Nf8 {[%clk 0:00:34]} 45. b4 {[%clk 0:00:22]}  Nxg6 {[%clk 0:00:33]} 46. bxa5+ {[%clk 0:00:14]}  Kxa5 {[%clk 0:00:33]} 47. Bc2 {[%clk 0:00:15]}  Ne7 {[%clk 0:00:32]} 48. Kd3 {[%clk 0:00:15]}  Ng8 {[%clk 0:00:31]} 49. Ke3 {[%clk 0:00:15]}  Nf6 {[%clk 0:00:32]} 50. Kd3 {[%clk 0:00:14]}  Kb4 {[%clk 0:00:31]} 51. Bd1 {[%clk 0:00:14]}  b6 {[%clk 0:00:31]} 52. Bc2 {[%clk 0:00:14]}  Nd7 {[%clk 0:00:31]} 53. Ke3 {[%clk 0:00:13]}  Nc5 {[%clk 0:00:31]} 54. Kf3 {[%clk 0:00:12]}  Kc3 {[%clk 0:00:31]} 55. Bd1 {[%clk 0:00:12]}  Kd2 {[%clk 0:00:31]} 56. Be2 {[%clk 0:00:12]}  Nxe4 {[%clk 0:00:31]} 0-1


[Site "https://www.chess.com"]

[Event "Titled Tuesday Blitz September 20 Late 2022"]
[White "Tari, Aryan"]
[Black "Perske, Thore"]
[WhiteFideId "1510045"]
[BlackFideId "12902195"]
[WhiteElo "2612"]
[BlackElo "2315"]
[Result "1-0"]
[Round "09"]
[TimeControl "180+1"]
[Date "2022.09.20"]
[WhiteClock "0:00:43"]
[BlackClock "0:00:11"]

1. c4 {[%clk 0:03:00]}  Nf6 {[%clk 0:02:55]} 2. Nc3 {[%clk 0:03:00]}  g6 {[%clk 0:02:55]} 3. e4 {[%clk 0:02:58]}  d6 {[%clk 0:02:55]} 4. d4 {[%clk 0:02:59]}  Bg7 {[%clk 0:02:55]} 5. Nf3 {[%clk 0:02:59]}  O-O {[%clk 0:02:55]} 6. Be2 {[%clk 0:03:00]}  e5 {[%clk 0:02:56]} 7. d5 {[%clk 0:03:01]}  a5 {[%clk 0:02:56]} 8. Bg5 {[%clk 0:03:01]}  Na6 {[%clk 0:02:55]} 9. Nd2 {[%clk 0:03:01]}  Qe8 {[%clk 0:02:46]} 10. h4 {[%clk 0:02:59]}  h5 {[%clk 0:02:43]} 11. a3 {[%clk 0:02:45]}  Bd7 {[%clk 0:02:39]} 12. f3 {[%clk 0:02:37]}  Nh7 {[%clk 0:02:25]} 13. Be3 {[%clk 0:02:34]}  Qe7 {[%clk 0:02:16]} 14. g4 {[%clk 0:02:30]}  Kh8 {[%clk 0:02:04]} 15. Qc2 {[%clk 0:02:15]}  Nc5 {[%clk 0:02:02]} 16. gxh5 {[%clk 0:02:09]}  gxh5 {[%clk 0:02:02]} 17. O-O-O {[%clk 0:02:08]}  a4 {[%clk 0:01:49]} 18. Rdg1 {[%clk 0:02:08]}  Rg8 {[%clk 0:01:43]} 19. Rg5 {[%clk 0:01:43]}  Nxg5 {[%clk 0:01:34]} 20. hxg5 {[%clk 0:01:43]}  Rgf8 {[%clk 0:01:20]} 21. Qd1 {[%clk 0:01:41]}  f5 {[%clk 0:01:17]} 22. Rxh5+ {[%clk 0:01:31]}  Kg8 {[%clk 0:01:16]} 23. g6 {[%clk 0:01:30]}  f4 {[%clk 0:01:11]} 24. Bf2 {[%clk 0:01:19]}  Qf6 {[%clk 0:01:02]} 25. Qg1 {[%clk 0:01:18]}  Be8 {[%clk 0:00:59]} 26. Rg5 {[%clk 0:01:18]}  Bh6 {[%clk 0:00:55]} 27. Rg2 {[%clk 0:01:16]}  b6 {[%clk 0:00:35]} 28. Rg4 {[%clk 0:01:13]}  Bd7 {[%clk 0:00:32]} 29. Bh4 {[%clk 0:01:04]}  Qg7 {[%clk 0:00:29]} 30. Rg2 {[%clk 0:01:05]}  Rae8 {[%clk 0:00:18]} 31. Nb5 {[%clk 0:01:05]}  Bxb5 {[%clk 0:00:17]} 32. cxb5 {[%clk 0:01:06]}  Ra8 {[%clk 0:00:17]} 33. Nc4 {[%clk 0:01:06]}  Rac8 {[%clk 0:00:16]} 34. Kb1 {[%clk 0:01:06]}  Rce8 {[%clk 0:00:16]} 35. Rg4 {[%clk 0:01:04]}  Ra8 {[%clk 0:00:16]} 36. Bf1 {[%clk 0:01:02]}  Nb3 {[%clk 0:00:16]} 37. Bh3 {[%clk 0:00:54]}  Nd4 {[%clk 0:00:16]} 38. Bf2 {[%clk 0:00:55]}  Nxf3 {[%clk 0:00:15]} 39. Qh1 {[%clk 0:00:52]}  Ng5 {[%clk 0:00:12]} 40. Rxg5 {[%clk 0:00:52]}  Bxg5 {[%clk 0:00:13]} 41. Be6+ {[%clk 0:00:52]}  Rf7 {[%clk 0:00:13]} 42. gxf7+ {[%clk 0:00:50]}  Kf8 {[%clk 0:00:14]} 43. Nd2 {[%clk 0:00:46]}  Ke7 {[%clk 0:00:13]} 44. Nf3 {[%clk 0:00:46]}  Bf6 {[%clk 0:00:14]} 45. Qc1 {[%clk 0:00:46]}  Ra7 {[%clk 0:00:13]} 46. Qc6 {[%clk 0:00:44]}  Qg2 {[%clk 0:00:11]} 47. Qe8# {[%clk 0:00:43]} 1-0


[Site "https://www.chess.com"]